bitfinex-derivatives/quotes_BTCF0:USTF0_20240817
["timestamp","ask_amount","ask_price","bid_price","bid_amount"]
[1723869816975,0.00604,59247.0,59246.0,0.57744563]
[1723869817879,0.00604,59247.0,59246.0,0.55982798]
[1723869818079,0.00604,59247.0,59246.0,0.57744548]
[1723869819083,0.00604,59247.0,59246.0,0.6612626]
[1723869819279,0.00604,59247.0,59246.0,0.57744548]
[1723869819483,0.00604,59247.0,59246.0,0.6612626]
[1723869819685,0.00604,59247.0,59246.0,0.66718162]
[1723869819981,0.00604,59247.0,59246.0,0.75127952]
[1723869820188,0.05664075,59247.0,59246.0,0.75127952]
[1723869820574,0.00604,59247.0,59246.0,0.75127952]
[1723869820776,0.05664075,59247.0,59246.0,0.75127952]
[1723869822288,0.05664075,59247.0,59246.0,0.75127678]
[1723869822588,0.05664075,59247.0,59246.0,0.75126785]
[1723869822784,0.00604,59247.0,59246.0,0.66716995]
[1723869823085,0.00604,59247.0,59246.0,0.64955417]
[1723869823273,0.00604,59247.0,59246.0,0.66716747]
[1723869823681,0.00604,59247.0,59246.0,0.75125615]
[1723869823892,0.00604,59247.0,59246.0,0.66716747]
[1723869824188,0.00604,59247.0,59246.0,0.30636747]
[1723869824384,0.00604,59247.0,59246.0,0.66716747]
[1723869825082,0.05664075,59247.0,59246.0,0.66716747]
[1723869825280,0.05664075,59247.0,59246.0,0.7512584]
[1723869825679,0.05664075,59247.0,59246.0,0.66716747]
[1723869826076,0.05664075,59247.0,59246.0,0.69651238]
[1723869826278,0.05664075,59247.0,59246.0,0.66716779]
[1723869826785,0.05664075,59247.0,59246.0,0.66716742]
[1723869826990,0.05664075,59247.0,59246.0,0.66709875]
[1723869827288,0.00604,59247.0,59246.0,0.66709875]
[1723869827785,0.05664075,59247.0,59246.0,0.66709875]
[1723869827988,0.05664075,59247.0,59246.0,0.6670981]
[1723869829979,0.05664075,59247.0,59246.0,0.3062981]
[1723869830182,0.05664075,59247.0,59246.0,0.6670981]
[1723869833294,0.00604,59247.0,59246.0,0.6670981]
[1723869833687,0.00604,59247.0,59246.0,0.3062981]
[1723869833888,0.00604,59247.0,59246.0,0.6670981]
[1723869834293,0.00604,59247.0,59246.0,0.66709808]
[1723869837100,0.00604,59247.0,59246.0,0.30629808]
[1723869837893,0.00604,59247.0,59246.0,0.66709808]
[1723869838296,0.00604,59247.0,59246.0,0.57369808]
[1723869838495,0.00604,59247.0,59246.0,0.66709808]
[1723869839193,0.00604,59247.0,59246.0,0.61235254]
[1723869839495,0.00604,59247.0,59246.0,0.30629794]
[1723869839697,0.00604,59247.0,59246.0,0.66709795]
[1723869841687,0.00604,59247.0,59246.0,0.66709834]
[1723869842094,0.00604,59247.0,59246.0,0.61235254]
[1723869842901,0.00604,59247.0,59246.0,0.64948522]
[1723869843096,0.00604,59247.0,59246.0,0.61235254]
[1723869843697,0.00604,59247.0,59246.0,0.61239749]
[1723869843908,0.00604,59247.0,59246.0,0.66714381]
[1723869844402,0.00604,59247.0,59246.0,0.61229644]
[1723869844599,0.00604,59247.0,59246.0,0.30624225]
[1723869844904,0.00604,59247.0,59246.0,0.66704225]
[1723869845905,0.00604,59247.0,59246.0,0.66700318]
[1723869847408,0.00604,59247.0,59246.0,0.30620318]
[1723869847602,0.00604,59247.0,59246.0,0.66700318]
[1723869848402,0.00604,59247.0,59246.0,0.66720636]
[1723869848702,0.05224,59247.0,59246.0,0.66720636]
[1723869848900,0.09744,59247.0,59246.0,0.66720636]
[1723869850708,0.09744,59247.0,59246.0,0.66719847]
[1723869852001,0.09744,59247.0,59246.0,0.66719906]
[1723869853304,0.14806949,59247.0,59246.0,0.30639906]
[1723869853504,0.14806949,59247.0,59246.0,0.66712255]
[1723869853505,0.14806955,59247.0,59246.0,0.66712255]
[1723869853809,0.14806955,59247.0,59246.0,0.30632255]
[1723869854012,0.14806955,59247.0,59246.0,0.66712255]
[1723869855710,0.14806955,59247.0,59246.0,0.64950891]
[1723869855911,0.14806955,59247.0,59246.0,0.66712211]
[1723869856606,0.14806955,59247.0,59246.0,0.30632211]
[1723869856812,0.14806955,59247.0,59246.0,0.66712211]
[1723869857008,0.14806955,59247.0,59246.0,0.66712161]
[1723869857814,0.09744,59247.0,59246.0,0.66712161]
[1723869859109,0.09744,59247.0,59246.0,0.76808499]
[1723869859904,0.09744,59247.0,59246.0,0.66712161]
[1723869860504,0.14806911,59247.0,59246.0,0.66712161]
[1723869861407,0.09744,59247.0,59246.0,0.66712161]
[1723869862009,0.09744,59247.0,59246.0,0.57743946]
[1723869862313,0.09744,59247.0,59246.0,0.66685212]
[1723869863214,0.09744,59247.0,59246.0,0.30605212]
[1723869863409,0.09744,59247.0,59246.0,0.66685212]
[1723869864801,0.09744,59247.0,59246.0,0.64923895]
[1723869865005,0.09744,59247.0,59246.0,0.6668511]
[1723869866204,0.09744,59247.0,59246.0,0.66680463]
[1723869867213,0.09744,59247.0,59246.0,0.61204084]
[1723869867420,0.09744,59247.0,59246.0,0.6667826]
[1723869868307,0.09744,59247.0,59246.0,0.66678271]
[1723869869310,0.09744,59247.0,59246.0,0.26885112]
[1723869869516,0.09744,59247.0,59246.0,0.30598281]
[1723869869721,0.09744,59247.0,59246.0,0.66678281]
[1723869871313,0.09744,59247.0,59246.0,0.6668259]
[1723869872109,0.09744,59247.0,59246.0,0.76778928]
[1723869872917,0.00604,59247.0,59246.0,0.76778928]
[1723869873213,0.00604,59247.0,59246.0,0.6668259]
[1723869874814,0.00604,59247.0,59246.0,0.76778928]
[1723869875116,0.00178678,59247.0,59246.0,1.99576084]
[1723869875307,0.04313556,59261.0,59250.0,0.067488]
[1723869875511,0.03,59261.0,59260.0,0.882478]
[1723869875708,0.03,59261.0,59260.0,1.0266099]
[1723869876521,0.032,59261.0,59260.0,1.0266099]
[1723869876713,0.032,59261.0,59260.0,1.1105023]
[1723869877110,0.032,59261.0,59260.0,1.1115023]
[1723869877317,0.032,59261.0,59260.0,0.93819868]
[1723869877916,0.032,59261.0,59260.0,1.02209108]
[1723869878118,0.03,59261.0,59260.0,1.02209108]
[1723869878316,0.03,59261.0,59260.0,1.02309108]
[1723869878512,0.03,59261.0,59260.0,0.93919868]
[1723869878719,0.03,59261.0,59260.0,0.57839868]
[1723869880526,0.03,59261.0,59260.0,0.57063111]
[1723869880728,0.03,59261.0,59260.0,0.20983111]
[1723869880925,0.03,59261.0,59260.0,0.57063111]
[1723869881421,0.03,59261.0,59260.0,0.57063066]
[1723869881626,0.03,59261.0,59260.0,0.63765424]
[1723869881825,0.03,59261.0,59260.0,0.57063066]
[1723869883122,0.03,59261.0,59260.0,0.63763399]
[1723869883325,0.03,59261.0,59260.0,0.63762365]
[1723869884327,0.03,59261.0,59260.0,0.54422365]
[1723869884523,0.03,59261.0,59260.0,0.57063066]
[1723869884929,0.03,59261.0,59260.0,0.04895266]
[1723869885427,0.1248,59261.0,59260.0,0.01183108]
[1723869885633,0.1248,59261.0,59260.0,0.04895756]
[1723869885826,0.1248,59261.0,59260.0,0.40975756]
[1723869886227,0.1248,59261.0,59260.0,0.50315756]
[1723869886421,0.1248,59261.0,59260.0,0.57063556]
[1723869886422,0.0948,59261.0,59260.0,0.57063556]
[1723869886616,0.1048,59261.0,59260.0,0.57063556]
[1723869886822,0.1048,59261.0,59260.0,0.62088414]
[1723869888940,0.1048,59261.0,59260.0,0.57063556]
[1723869889631,0.1048,59261.0,59260.0,0.57063148]
[1723869890137,0.1048,59261.0,59260.0,0.53350908]
[1723869890326,0.1048,59261.0,59260.0,0.57063165]
[1723869890633,0.1048,59261.0,59260.0,0.6208799]
[1723869890822,0.1048,59261.0,59260.0,0.57063165]
[1723869891018,0.1048,59261.0,59260.0,0.62087993]
[1723869891531,0.1982,59261.0,59260.0,0.11643165]
[1723869892028,0.1982,59261.0,59260.0,0.47723165]
[1723869892331,0.1982,59261.0,59260.0,0.52747993]
[1723869892528,0.1048,59261.0,59260.0,0.62087993]
[1723869892731,0.1048,59261.0,59260.0,0.57063165]
[1723869897330,0.1048,59261.0,59260.0,0.62092514]
[1723869897629,0.1048,59261.0,59260.0,0.52753433]
[1723869898230,0.1048,59261.0,59260.0,0.52753749]
[1723869899325,0.1982,59261.0,59260.0,0.04895681]
[1723869900429,0.1982,59261.0,59260.0,0.04895936]
[1723869900835,0.1982,59261.0,59260.0,0.03912828]
[1723869901224,0.1982,59261.0,59260.0,0.002]
[1723869901529,0.1982,59261.0,59260.0,0.03912817]
[1723869902425,0.1048,59261.0,59260.0,0.03912817]
[1723869903030,0.1048,59261.0,59260.0,0.0391263]
[1723869903344,0.1982,59261.0,59260.0,0.0391263]
[1723869904040,0.1982,59261.0,59260.0,0.03912702]
[1723869905537,0.1982,59261.0,59260.0,0.002]
[1723869905833,0.26570607,59261.0,59260.0,0.08951816]
[1723869906041,0.26560343,59261.0,59260.0,0.03912679]
[1723869906227,0.1982,59261.0,59260.0,0.03912679]
[1723869906741,0.1982,59261.0,59260.0,0.002]
[1723869906925,1.18882259,59261.0,59255.0,0.05064459]
[1723869907127,0.160882,59256.0,59255.0,0.00025322]
[1723869907332,0.490882,59256.0,59255.0,0.00025322]
[1723869907534,1.397162,59256.0,59255.0,0.00025322]
[1723869908141,1.397202,59256.0,59255.0,0.00125322]
[1723869908435,0.997202,59256.0,59255.0,0.00225322]
[1723869909436,1.46454264,59256.0,59255.0,0.00225322]
[1723869909837,1.46454264,59256.0,59252.0,0.3608]
[1723869909838,0.067486,59253.0,59252.0,0.3608]
[1723869910037,0.540886,59253.0,59252.0,0.39793254]
[1723869910336,1.447206,59253.0,59252.0,0.39793254]
[1723869911142,1.448206,59253.0,59252.0,0.39893254]
[1723869911347,1.450246,59253.0,59252.0,0.3999327]
[1723869912942,1.450246,59253.0,59252.0,0.0391327]
[1723869913142,1.450246,59253.0,59252.0,0.002]
[1723869913543,1.87838664,59253.0,59252.0,0.002]
[1723869913744,1.87838664,59253.0,59247.0,0.00025322]
[1723869913745,1.74356,59253.0,59247.0,0.00025322]
[1723869913936,0.0934,59248.0,59247.0,0.00025322]
[1723869914243,0.4934,59248.0,59247.0,0.03738941]
[1723869914740,0.4934,59248.0,59247.0,0.00025322]
[1723869914943,0.4934,59248.0,59247.0,0.00125322]
[1723869915138,0.560932,59248.0,59247.0,0.00125322]
[1723869915440,0.560932,59248.0,59247.0,0.00025322]
[1723869915641,0.563932,59248.0,59247.0,0.00125322]
[1723869917541,0.566932,59248.0,59247.0,0.00125322]
[1723869919846,0.473532,59248.0,59247.0,0.00125322]
[1723869920046,0.566932,59248.0,59247.0,0.00125322]
[1723869923637,1.073292,59248.0,59247.0,0.00125322]
[1723869923843,0.067496,59244.0,59241.0,0.428299]
[1723869924056,0.0934,59242.0,59241.0,0.428299]
[1723869924247,0.4134,59242.0,59241.0,0.428299]
[1723869924547,0.5106,59242.0,59241.0,0.428299]
[1723869925248,0.51064,59242.0,59241.0,0.428299]
[1723869925640,0.579138,59242.0,59241.0,0.3608]
[1723869926537,0.52388,59248.0,59241.0,1.5106]
[1723869926538,0.00388,59248.0,59241.0,1.5106]
[1723869926741,0.06730867,59264.0,59252.0,0.067487]
[1723869926942,0.06730867,59264.0,59252.0,0.60907088]
[1723869926943,0.0934,59264.0,59252.0,0.60907088]
[1723869927142,0.0934,59264.0,59252.0,0.55881923]
[1723869927449,0.0934,59264.0,59252.0,0.64270374]
[1723869927641,0.0934,59264.0,59252.0,0.72969578]
[1723869927842,0.0934,59264.0,59260.0,0.0934]
[1723869928045,0.1234,59264.0,59263.0,0.3608]
[1723869929352,0.1274,59264.0,59263.0,0.3618]
[1723869930446,0.1274,59264.0,59263.0,0.3628]
[1723869930642,0.1274,59264.0,59263.0,0.002]
[1723869930843,0.034,59264.0,59263.0,0.3628]
[1723869931154,0.1274,59264.0,59263.0,0.3628]
[1723869933652,0.034,59264.0,59263.0,0.523674]
[1723869936841,0.034,59264.0,59263.0,0.162874]
[1723869937042,0.034,59264.0,59263.0,0.523674]
[1723869942352,0.034,59264.0,59263.0,0.430274]
[1723869942543,0.084,59264.0,59263.0,0.430274]
[1723869946648,0.084,59264.0,59263.0,0.069474]
[1723869946946,0.084,59264.0,59263.0,0.430274]
[1723869947345,0.084,59264.0,59263.0,0.3628]
[1723869947552,0.084,59264.0,59263.0,0.002]
[1723869949247,0.084,59264.0,59263.0,0.430274]
[1723869949757,0.084,59264.0,59263.0,0.4673961]
[1723869950056,0.034,59264.0,59263.0,0.4673961]
[1723869951757,0.034,59264.0,59263.0,0.430274]
[1723869951954,0.034,59264.0,59263.0,0.46739589]
[1723869952150,0.034,59264.0,59263.0,0.47769322]
[1723869954555,0.034,59264.0,59263.0,0.11689322]
[1723869954755,0.034,59264.0,59263.0,0.47769322]
[1723869954946,0.034,59264.0,59263.0,0.11689322]
[1723869955145,0.034,59264.0,59263.0,0.44057133]
[1723869955665,0.034,59264.0,59263.0,0.4805065]
[1723869956452,0.034,59264.0,59263.0,0.430274]
[1723869957553,0.034,59264.0,59263.0,0.069474]
[1723869957755,0.034,59264.0,59263.0,0.430274]
[1723869958560,0.1274,59264.0,59263.0,0.430274]
[1723869958752,0.19470867,59264.0,59263.0,0.49747948]
[1723869958953,0.1274,59264.0,59263.0,0.430274]
[1723869960263,0.19485135,59264.0,59263.0,0.430274]
[1723869961260,0.1274,59264.0,59263.0,0.49747948]
[1723869962467,0.194873,59264.0,59263.0,0.3628]
[1723869963360,0.194873,59264.0,59258.0,0.00025322]
[1723869963361,1.12841621,59264.0,59258.0,0.05064344]
[1723869963553,0.24520464,59259.0,59258.0,0.00025322]
[1723869963756,0.58520464,59259.0,59258.0,0.00025322]
[1723869964562,0.58524464,59259.0,59258.0,0.00125322]
[1723869964755,0.52826331,59259.0,59258.0,0.00125322]
[1723869965358,0.500919,59259.0,59258.0,0.00125322]
[1723869965865,1.007159,59259.0,59258.0,0.00125322]
[1723869966181,1.03450385,59259.0,59258.0,0.00125322]
[1723869966360,1.007159,59259.0,59258.0,0.00225322]
[1723869966963,1.03450385,59259.0,59258.0,0.00125322]
[1723869967161,1.03950385,59259.0,59258.0,0.00225322]
[1723869967362,1.04970304,59259.0,59258.0,0.00225322]
[1723869967669,0.54346304,59259.0,59258.0,0.00225322]
[1723869968375,1.44970304,59259.0,59258.0,0.00225322]
[1723869968667,0.067486,59253.0,59252.0,0.05039022]
[1723869968870,0.500886,59253.0,59252.0,0.05039022]
[1723869969858,0.407526,59253.0,59252.0,0.05039022]
[1723869970065,0.500926,59253.0,59252.0,0.05039022]
[1723869970367,0.413526,59253.0,59252.0,0.05239022]
[1723869970582,0.506926,59253.0,59252.0,0.05239022]
[1723869970962,0.413526,59253.0,59252.0,0.05239022]
[1723869971162,0.506926,59253.0,59252.0,0.05239022]
[1723869971373,0.506926,59253.0,59252.0,0.08952323]
[1723869972075,0.506926,59253.0,59252.0,0.05239022]
[1723869972269,0.506926,59253.0,59252.0,0.08952365]
[1723869974162,0.506926,59253.0,59252.0,0.03913343]
[1723869974163,0.57431507,59253.0,59252.0,0.03913343]
[1723869975081,0.57431507,59253.0,59252.0,0.03913241]
[1723869975574,0.57431507,59253.0,59252.0,0.03913209]
[1723869977263,0.57431507,59253.0,59252.0,0.002]
[1723869977771,0.57431507,59253.0,59252.0,0.03913271]
[1723869977976,0.57431507,59253.0,59252.0,0.002]
[1723869979079,0.506926,59253.0,59252.0,0.002]
[1723869985779,0.93501364,59253.0,59252.0,0.002]
[1723869985977,0.867726,59253.0,59252.0,0.002]
[1723869989084,0.506926,59253.0,59252.0,0.002]
[1723869989887,0.867726,59253.0,59252.0,0.002]
[1723869990885,0.87803373,59253.0,59252.0,0.002]
[1723869991490,0.51723373,59253.0,59252.0,0.002]
[1723869991786,0.87803373,59253.0,59252.0,0.002]
[1723869992180,0.51723373,59253.0,59252.0,0.002]
[1723869992988,0.90538265,59253.0,59252.0,0.002]
[1723869993678,0.90538265,59253.0,59247.0,0.00025322]
[1723869993679,0.067492,59248.0,59247.0,0.00025322]
[1723869993883,0.18824192,59248.0,59247.0,0.00025322]
[1723869994193,0.55824192,59248.0,59247.0,0.00025322]
[1723869994987,0.56328192,59248.0,59247.0,0.00125322]
[1723869995984,0.56528192,59248.0,59247.0,0.00125322]
[1723869997694,0.92608192,59248.0,59247.0,0.00125322]
[1723869998283,0.898732,59248.0,59247.0,0.00125322]
[1723869999380,0.56528208,59248.0,59247.0,0.00125322]
[1723869999590,0.92608208,59248.0,59247.0,0.00125322]
[1723869999786,0.56528208,59248.0,59247.0,0.00125322]
[1723869999990,0.92608208,59248.0,59247.0,0.00125322]
[1723870000386,0.898732,59248.0,59247.0,0.00125322]
[1723870000988,0.98297964,59248.0,59247.0,0.00125322]
[1723870003186,0.898732,59248.0,59247.0,0.00125322]
[1723870004291,0.067496,59244.0,59240.0,0.0675]
[1723870004499,0.0934,59241.0,59240.0,0.0675]
[1723870004690,0.2734,59241.0,59240.0,0.10464047]
[1723870005493,0.27344,59241.0,59240.0,0.10464047]
[1723870006199,0.27344,59241.0,59240.0,0.10764047]
[1723870008494,0.27344,59241.0,59240.0,0.0705]
[1723870008799,0.27344,59241.0,59240.0,0.10764053]
[1723870009399,0.3408326,59241.0,59240.0,0.10764053]
[1723870010392,0.3408326,59241.0,59240.0,0.15803075]
[1723870010793,0.3408326,59241.0,59240.0,0.10764053]
[1723870011195,0.27344,59241.0,59240.0,0.10764053]
[1723870011489,0.3408326,59241.0,59240.0,0.10764053]
[1723870012700,0.3408326,59241.0,59240.0,0.10764048]
[1723870013108,0.3408326,59241.0,59240.0,0.0705]
[1723870013309,0.3408326,59241.0,59240.0,0.1076405]
[1723870015510,0.3408326,59241.0,59240.0,0.15803072]
[1723870015897,0.3408326,59241.0,59240.0,0.15803071]
[1723870016405,0.27344,59241.0,59240.0,0.10764049]
[1723870017702,0.34094,59241.0,59240.0,0.04014049]
[1723870017895,0.34094,59241.0,59240.0,0.09054746]
[1723870018103,0.39064,59241.0,59240.0,0.04014049]
[1723870019398,0.75144,59241.0,59240.0,0.04014049]
[1723870020502,0.83568075,59241.0,59240.0,0.04014049]
[1723870020699,0.83568075,59241.0,59240.0,0.003]
[1723870020900,0.83568075,59241.0,59240.0,0.04014268]
[1723870021094,0.83568075,59241.0,59240.0,0.04014263]
[1723870023504,0.75144,59241.0,59240.0,0.04014263]
[1723870023914,0.75144,59241.0,59240.0,0.04014252]
[1723870024211,0.75144,59241.0,59240.0,0.003]
[1723870024398,0.75144,59241.0,59240.0,0.04014252]
[1723870025103,0.39064,59241.0,59240.0,0.04014252]
[1723870025304,0.47498227,59241.0,59240.0,0.04014252]
[1723870025498,0.75144,59241.0,59240.0,0.04014252]
[1723870025710,0.83578232,59241.0,59240.0,0.04014252]
[1723870026213,0.75144,59241.0,59240.0,0.04014252]
[1723870027205,0.83577969,59241.0,59240.0,0.04014252]
[1723870027405,0.75144,59241.0,59240.0,0.04014252]
[1723870027608,0.83577984,59241.0,59240.0,0.04014252]
[1723870028506,0.47497984,59241.0,59240.0,0.04014252]
[1723870031110,0.39064,59241.0,59240.0,0.04014252]
[1723870031616,0.47497984,59241.0,59240.0,0.04014252]
[1723870033214,0.47497984,59241.0,59240.0,0.003]
[1723870033508,0.47497984,59241.0,59240.0,0.09054808]
[1723870038213,0.47497984,59241.0,59240.0,0.003]
[1723870038214,0.41799206,59241.0,59240.0,0.003]
[1723870038610,0.067503,59238.0,59237.0,0.05040697]
[1723870038918,0.901703,59238.0,59237.0,0.03714405]
[1723870039221,0.98606192,59238.0,59237.0,0.03714405]
[1723870040014,0.98610192,59238.0,59237.0,0.09055102]
[1723870040220,0.98610192,59238.0,59237.0,0.04014405]
[1723870040414,0.62530192,59238.0,59237.0,0.04014405]
[1723870040613,0.540943,59238.0,59237.0,0.003]
[1723870041018,0.38004,59238.0,59237.0,0.07020548]
[1723870042217,0.38004,59238.0,59237.0,0.13770948]
[1723870045314,0.38004,59238.0,59237.0,0.070504]
[1723870049920,0.44752959,59238.0,59237.0,0.070504]
[1723870055621,0.38004,59238.0,59237.0,0.070504]
[1723870056128,0.38004,59238.0,59237.0,0.431304]
[1723870056331,0.43065439,59238.0,59237.0,0.431304]
[1723870058033,0.43065439,59238.0,59237.0,0.5151964]
[1723870058223,0.43065439,59238.0,59237.0,0.431304]
[1723870058531,0.43065439,59238.0,59237.0,0.5151964]
[1723870058532,0.38004,59238.0,59237.0,0.5151964]
[1723870059531,0.38004,59238.0,59237.0,0.2477964]
[1723870059731,0.38004,59238.0,59237.0,0.6085964]
[1723870060127,0.38004,59238.0,59237.0,0.524704]
[1723870061227,0.43065439,59238.0,59237.0,0.524704]
[1723870061733,0.52405439,59238.0,59237.0,0.431304]
[1723870061924,0.47344,59238.0,59237.0,0.431304]
[1723870063018,0.47344,59238.0,59237.0,0.070504]
[1723870067638,0.32813819,59238.0,59237.0,0.66800099]
[1723870067833,0.32813819,59238.0,59237.0,1.16876532]
[1723870068135,0.32813819,59238.0,59237.0,1.1687853]
[1723870068735,0.32813819,59238.0,59237.0,1.16878276]
[1723870068935,0.32813819,59238.0,59237.0,1.26118685]
[1723870069443,0.32813819,59238.0,59237.0,1.16040507]
[1723870069634,0.32813819,59238.0,59237.0,1.1602691]
[1723870069939,0.05,59244.0,59237.0,1.1602691]
[1723870069940,0.05057878,59248.0,59238.0,0.067503]
[1723870070149,0.05057878,59251.0,59250.0,0.067489]
[1723870070346,0.05057878,59251.0,59250.0,0.160889]
[1723870071241,0.05057878,59252.0,59251.0,0.067488]
[1723870071542,0.05057878,59252.0,59251.0,0.11783228]
[1723870071840,0.050832,59253.0,59251.0,0.11783228]
[1723870072245,0.00025322,59253.0,59252.0,0.067487]
[1723870073039,0.00725322,59253.0,59252.0,0.067487]
[1723870073739,0.00725322,59253.0,59252.0,0.068487]
[1723870074261,0.00725322,59253.0,59252.0,0.12899008]
[1723870074459,0.00725322,59253.0,59252.0,0.12999008]
[1723870074460,0.01125322,59253.0,59252.0,0.12999008]
[1723870074661,0.01125322,59253.0,59252.0,0.07968868]
[1723870074854,0.01125322,59253.0,59252.0,0.1299848]
[1723870075049,0.01125322,59253.0,59252.0,0.07968868]
[1723870075255,0.01125322,59253.0,59252.0,0.12998273]
[1723870075456,0.01125322,59253.0,59252.0,0.07968868]
[1723870077155,0.01125322,59253.0,59252.0,0.44048868]
[1723870079266,0.01125322,59253.0,59252.0,0.07968868]
[1723870080067,0.21125322,59253.0,59252.0,0.07968868]
[1723870084770,0.21125322,59253.0,59252.0,0.069487]
[1723870086273,0.21125322,59253.0,59252.0,0.002]
[1723870089173,0.21125322,59253.0,59252.0,0.05229405]
[1723870089666,0.21125322,59253.0,59252.0,0.05234001]
[1723870090064,0.21125322,59253.0,59252.0,0.002]
[1723870090274,0.21125322,59253.0,59252.0,0.05234516]
[1723870090972,0.21125322,59253.0,59252.0,0.002]
[1723870091172,0.21125322,59253.0,59252.0,0.05235231]
[1723870093065,0.21125322,59253.0,59252.0,0.002]
[1723870093266,0.21125322,59253.0,59252.0,0.05237746]
[1723870093978,0.21125322,59253.0,59252.0,0.002]
[1723870094377,0.21125322,59253.0,59252.0,0.05237796]
[1723870094876,0.21125322,59253.0,59252.0,0.41317796]
[1723870095479,0.21125322,59253.0,59252.0,0.3628]
[1723870096367,0.26177309,59253.0,59252.0,0.3628]
[1723870096970,0.21125322,59253.0,59252.0,0.3628]
[1723870097176,0.21125322,59253.0,59252.0,0.42990561]
[1723870098573,0.21125322,59253.0,59252.0,0.3628]
[1723870098780,0.21125322,59253.0,59252.0,0.43007243]
[1723870099277,0.27861304,59253.0,59252.0,0.3628]
[1723870100367,0.27873922,59253.0,59252.0,0.43010436]
[1723870102972,0.07873922,59253.0,59252.0,0.43010436]
[1723870103172,0.14621866,59253.0,59252.0,0.3628]
[1723870103879,0.14621866,59253.0,59252.0,0.002]
[1723870104669,0.07873922,59253.0,59252.0,0.002]
[1723870104871,0.34621866,59253.0,59252.0,0.002]
[1723870105879,0.27873922,59253.0,59252.0,0.002]
[1723870106484,0.34621866,59253.0,59252.0,0.002]
[1723870106988,0.27873922,59253.0,59252.0,0.002]
[1723870107884,0.27873922,59253.0,59252.0,0.3628]
[1723870108883,0.27873922,59253.0,59252.0,0.002]
[1723870109189,0.27873922,59253.0,59252.0,0.3628]
[1723870110182,0.27873922,59253.0,59252.0,0.44668201]
[1723870110481,0.27873922,59253.0,59252.0,0.3628]
[1723870110677,0.27873922,59253.0,59252.0,0.002]
[1723870110881,0.27873922,59253.0,59252.0,0.3628]
[1723870111087,0.27873922,59253.0,59252.0,0.44668201]
[1723870111289,0.27873922,59253.0,59252.0,0.3628]
[1723870113582,0.34621866,59253.0,59252.0,0.3628]
[1723870113980,0.34621866,59253.0,59252.0,0.002]
[1723870114185,0.34621866,59253.0,59252.0,0.3628]
[1723870117187,0.34622046,59253.0,59252.0,0.3628]
[1723870117785,0.34622046,59253.0,59252.0,0.002]
[1723870118390,0.34622046,59253.0,59252.0,0.3628]
[1723870118692,0.27873922,59253.0,59252.0,0.3628]
[1723870119689,0.27873922,59253.0,59252.0,0.002]
[1723870119891,0.27873922,59253.0,59252.0,0.3628]
[1723870120092,0.27873922,59253.0,59252.0,0.002]
[1723870120290,0.27873922,59253.0,59252.0,0.3628]
[1723870120596,0.34622259,59253.0,59252.0,0.3628]
[1723870120987,0.27873659,59253.0,59252.0,0.3628]
[1723870121187,0.21125322,59253.0,59252.0,0.3628]
[1723870121395,0.01125322,59253.0,59252.0,0.3628]
[1723870121697,0.13125322,59253.0,59252.0,0.3628]
[1723870122993,0.13125322,59253.0,59252.0,0.002]
[1723870123398,0.13125322,59253.0,59252.0,0.3628]
[1723870126701,0.01125322,59253.0,59252.0,0.430287]
[1723870126905,0.07873444,59253.0,59252.0,0.430287]
[1723870127106,0.01125322,59253.0,59252.0,0.430287]
[1723870128007,0.01125322,59253.0,59252.0,0.069487]
[1723870128196,0.01125322,59253.0,59252.0,0.430287]
[1723870130009,0.07873444,59253.0,59252.0,0.430287]
[1723870130420,0.01125322,59253.0,59252.0,0.430287]
[1723870134414,0.06185217,59253.0,59252.0,1.49253008]
[1723870134717,0.06748122,59265.0,59257.0,0.067481]
[1723870135022,0.06748122,59267.0,59266.0,0.067471]
[1723870135224,0.0493,59269.0,59268.0,0.067469]
[1723870135421,0.0493,59269.0,59268.0,0.13466052]
[1723870136118,0.0493,59269.0,59268.0,0.067469]
[1723870136824,0.0533,59269.0,59268.0,0.068469]
[1723870137123,0.0533,59269.0,59268.0,0.07827992]
[1723870137825,0.0533,59269.0,59268.0,0.07927992]
[1723870138826,0.004,59269.0,59268.0,0.07927992]
[1723870140827,0.004,59269.0,59268.0,0.44007992]
[1723870141026,0.004,59269.0,59268.0,0.50727144]
[1723870141334,0.004,59269.0,59268.0,0.44007992]
[1723870141720,0.004,59269.0,59268.0,0.50711188]
[1723870142022,0.004,59269.0,59268.0,0.44007992]
[1723870142221,0.004,59269.0,59268.0,0.50710065]
[1723870143022,0.004,59269.0,59268.0,0.44007992]
[1723870143427,0.004,59269.0,59268.0,0.50705432]
[1723870143629,0.004,59269.0,59268.0,0.44007992]
[1723870143828,0.004,59269.0,59268.0,1.34623992]
[1723870144029,0.004,59269.0,59268.0,1.50623992]
[1723870144329,0.004,59269.0,59268.0,1.03963992]
[1723870144730,0.00025322,59274.0,59268.0,1.03963992]
[1723870144731,0.00025322,59274.0,59273.0,0.067463]
[1723870144927,0.00025322,59274.0,59273.0,0.521663]
[1723870145829,0.00125322,59274.0,59273.0,0.522663]
[1723870146421,0.00125322,59274.0,59273.0,0.523663]
[1723870147731,0.00125322,59274.0,59273.0,0.57381305]
[1723870148130,0.00125322,59274.0,59273.0,0.430263]
[1723870148436,0.00125322,59274.0,59273.0,0.523663]
[1723870148829,0.01125322,59274.0,59273.0,0.430263]
[1723870149025,0.00125322,59274.0,59273.0,0.430263]
[1723870149228,0.17871522,59274.0,59273.0,0.002]
[1723870149827,0.24619644,59274.0,59273.0,0.002]
[1723870150131,1.15231644,59274.0,59273.0,0.002]
[1723870150433,0.067473,59264.0,59263.0,0.00025322]
[1723870150620,0.490873,59264.0,59263.0,0.00025322]
[1723870151221,0.997073,59264.0,59263.0,0.00025322]
[1723870151422,0.067482,59257.0,59253.0,0.0934]
[1723870151629,0.0934,59256.0,59253.0,0.0934]
[1723870151933,0.1415,59256.0,59251.0,0.3608]
[1723870152134,0.067485,59254.0,59252.0,0.0934]
[1723870152531,0.1408,59253.0,59251.0,0.3608]
[1723870152731,0.208286,59253.0,59251.0,0.3608]
[1723870153431,0.0476,59252.0,59251.0,0.3608]
[1723870154035,0.05764,59252.0,59251.0,0.3608]
[1723870154241,0.05764,59252.0,59251.0,0.3618]
[1723870154432,0.05764,59252.0,59251.0,0.3628]